bitfinex-derivatives/quotes_SOLF0:USTF0_20220108
["timestamp","ask_amount","ask_price","bid_price","bid_amount"]
[1641640953220,5.48231732,145.93,145.88,27.66479]
[1641640953418,11.51131732,145.93,145.88,27.66479]
[1641640954421,5.48300224,145.91,145.86,27.66479]
[1641640955424,6.029,145.93,145.86,34.51786018]
[1641640955823,6.029,145.93,145.86,27.66479]
[1641640957928,6.029,145.93,145.86,31.66479]
[1641640958727,5.48184521,145.94,145.86,38.51786018]
[1641640959129,5.48184521,145.94,145.86,34.51786018]
[1641640959629,15.94184521,145.94,145.86,34.51786018]
[1641640961430,15.94184521,145.94,145.87,4.0]
[1641640961632,15.94184521,145.94,145.86,38.51786018]
[1641640961832,15.94184521,145.94,145.86,34.51786018]
[1641640962331,15.94184521,145.94,145.86,47.1981671]
[1641640964033,15.94184521,145.94,145.87,4.0]
[1641640964234,10.46,145.94,145.88,4.0]
[1641640964435,10.46,145.94,145.89,4.0]
[1641640964634,10.46,145.94,145.88,4.0]
[1641640964835,10.46,145.94,145.86,48.9111671]
[1641640965036,10.46,145.94,145.89,4.0]
[1641640965234,10.46,145.94,145.91,27.66479]
[1641640965434,74.59536077,145.99,145.91,27.66479]
[1641640966136,4.0,145.97,145.92,1.8165838]
[1641640966335,7.19298631,145.96,145.92,1.8165838]
[1641640966738,5.48098631,145.96,145.92,1.8165838]
[1641640968640,8.83,145.97,145.92,1.8165838]
[1641640969237,8.83,145.97,145.93,14.47865979]
[1641640970337,5.48023974,145.98,145.93,14.47865979]
[1641640971940,5.48023974,145.98,145.94,14.47865979]
[1641640974543,5.48023974,145.98,145.95,14.47865979]
[1641640975544,5.48023974,145.98,145.96,14.47865979]
[1641640975748,12.112,146.0,145.96,14.47865979]
[1641640975947,5.48007021,145.99,145.96,14.47865979]
[1641640976351,5.48083238,145.97,145.96,14.47865979]
[1641640976552,11.46683238,145.97,145.96,14.47865979]
[1641640977653,5.986,145.97,145.96,14.47865979]
[1641640977852,23.00458582,146.0,145.96,14.47865979]
[1641640978858,23.00458582,146.0,145.97,14.47865979]
[1641640979656,4.0,145.99,145.97,14.47865979]
[1641640979856,28.48427138,146.0,145.97,14.47865979]
[1641640981058,28.48427138,146.0,145.98,14.47865979]
[1641640981557,21.90868556,146.0,145.98,14.47865979]
[1641640981758,15.87968556,146.0,145.98,14.47865979]
[1641640982558,15.87968556,146.0,145.95,38.58842765]
[1641640982760,10.4,146.0,145.97,38.58842765]
[1641640983362,10.4,146.0,145.96,38.58842765]
[1641640984162,10.4,146.0,145.99,14.53943313]
[1641640986864,10.4,146.0,145.98,14.53943313]
[1641640987464,10.4,146.0,145.99,14.53943313]
[1641640989164,10.4,146.0,145.96,38.58842765]
[1641640990167,10.4,146.0,145.97,38.58842765]
[1641640991668,10.4,146.0,145.98,38.58842765]
[1641640992268,5.48013161,145.99,145.95,12.70303778]
[1641640992468,7.19213161,145.99,145.93,61.19377518]
[1641640992969,7.19213161,145.99,145.98,13.07455047]
[1641640993672,7.19213161,145.99,145.94,14.56095996]
[1641640993870,5.48013161,145.99,145.94,14.56095996]
[1641640994473,38.06479,146.0,145.94,14.56095996]
[1641640995075,42.06479,146.0,145.96,14.56095996]
[1641640995275,38.06479,146.0,145.96,14.56095996]
[1641640995476,39.77679,146.0,145.96,14.56095996]
[1641640995676,38.06479,146.0,145.96,14.56095996]
[1641640998183,38.06479,146.0,145.97,14.56095996]
[1641640999084,38.06479,146.0,145.98,14.56095996]
[1641641000386,38.06479,146.0,145.98,5.44095996]
[1641641000586,38.06479,146.0,145.92,68.0197]
[1641641000787,45.78379,146.0,145.92,68.0197]
[1641641001886,51.26347001,146.0,145.92,68.0197]
[1641641002386,51.26347001,146.0,145.92,72.0197]
[1641641002990,4.0,145.98,145.92,68.0197]
[1641641003188,1.712,145.99,145.91,27.66479]
[1641641003389,33.14566092,145.97,145.89,58.2494771]
[1641641003589,9.48161212,145.95,145.89,58.2494771]
[1641641003890,1.713,145.94,145.88,27.66479]
[1641641004089,4.0,145.92,145.88,18.66479]
[1641641004288,7.19617372,145.91,145.88,18.66479]
[1641641004588,4.0,145.89,145.87,47.8694771]
[1641641004790,5.48374635,145.89,145.87,47.8694771]
[1641641004989,5.48374635,145.89,145.83,64.6037]
[1641641005288,5.48374635,145.89,145.81,47.8694771]
[1641641005488,27.66479,145.87,145.81,47.8694771]
[1641641005689,35.86679,145.87,145.81,47.8694771]
[1641641006492,35.86679,145.87,145.8,66.4395]
[1641641007793,35.86679,145.87,145.81,12.32330567]
[1641641008393,35.86679,145.87,145.8,66.4395]
[1641641008994,5.4850255,145.86,145.8,66.4395]
[1641641009193,1.714,145.85,145.8,66.4395]
[1641641009394,7.19911553,145.85,145.78,100.29785449]
[1641641009595,5.48511553,145.85,145.78,100.29785449]
[1641641010296,5.48511553,145.85,145.78,34.52185449]
[1641641010797,35.86679,145.87,145.74,49.5834771]
[1641641010798,5.48614312,145.83,145.74,49.5834771]
[1641641010997,5.714,145.82,145.74,29.6694771]
[1641641011297,5.48724571,145.8,145.77,12.27117199]
[1641641011501,27.66479,145.78,145.77,12.27117199]
[1641641012098,27.66479,145.78,145.7,67.5351]
[1641641012298,29.37979,145.78,145.7,67.5351]
[1641641013001,29.37979,145.78,145.71,4.0]
[1641641013200,27.66479,145.78,145.71,4.0]
[1641641013399,27.66479,145.78,145.7,95.19989]
[1641641014201,27.66479,145.78,145.7,99.19989]
[1641641014500,27.66479,145.79,145.7,106.06048276]
[1641641015101,27.66479,145.79,145.7,102.06048276]
[1641641015301,27.66479,145.79,145.7,101.82589]
[1641641016102,27.66479,145.79,145.7,105.82589]
[1641641016305,27.66479,145.79,145.71,4.0]
[1641641016603,27.66479,145.79,145.71,6.86035742]
[1641641016802,27.66479,145.79,145.71,4.0]
[1641641017605,27.66479,145.79,145.7,99.19989]
[1641641018505,37.84479,145.79,145.7,99.19989]
[1641641018707,41.84479,145.79,145.7,95.19989]
[1641641018906,43.93379,145.79,145.7,95.19989]
[1641641019108,1.715,145.78,145.7,95.19989]
[1641641019307,5.48816668,145.77,145.7,95.19989]
[1641641019509,1.715,145.76,145.7,95.19989]
[1641641019707,6.824,145.76,145.7,95.19989]
[1641641024014,39.55979,145.79,145.7,99.19989]
[1641641024316,37.84479,145.79,145.7,99.19989]
[1641641025414,37.84479,145.79,145.7,95.19989]
[1641641025615,65.50958,145.79,145.7,95.19989]
[1641641026217,65.50958,145.79,145.7,99.19989]
[1641641026419,67.22458,145.79,145.7,99.19989]
[1641641026718,67.22458,145.79,145.7,95.19989]
[1641641027519,27.66479,145.76,145.7,95.19989]
[1641641027720,34.97079,145.76,145.7,99.19989]
[1641641028322,34.97079,145.76,145.71,4.0]
[1641641029625,34.97079,145.76,145.72,4.0]
[1641641029827,27.66479,145.76,145.72,4.0]
[1641641030225,37.84479,145.79,145.75,4.0]
[1641641030426,1.715,145.82,145.75,5.543]
[1641641030628,64.6286,145.84,145.75,5.543]
[1641641030827,18.75627763,145.85,145.75,5.543]
[1641641031426,18.75627763,145.85,145.76,64.7944]
[1641641031627,27.66479,145.84,145.76,64.7944]
[1641641032627,27.66479,145.84,145.77,1.87396957]
[1641641033628,27.66479,145.84,145.77,5.87396957]
[1641641033831,10.46,145.85,145.78,4.0]
[1641641034029,10.46,145.85,145.79,4.0]
[1641641034229,10.46,145.85,145.79,12.204]
[1641641034431,81.24693368,145.89,145.79,12.204]
[1641641034729,15.92383368,145.89,145.8,70.6473]
[1641641034930,15.92383368,145.89,145.81,4.0]
[1641641035330,10.44,145.89,145.81,4.0]
[1641641035730,38.10479,145.89,145.81,31.66479]
[1641641035930,38.10479,145.89,145.82,1.87396957]
[1641641037232,1.714,145.88,145.82,1.87396957]
[1641641037632,1.714,145.88,145.81,1.87396957]
[1641641038533,1.714,145.88,145.81,16.31450622]
[1641641038933,38.10479,145.89,145.81,16.31450622]
[1641641039133,38.10479,145.89,145.81,22.31150622]
[1641641040337,38.10479,145.89,145.83,14.44053665]
[1641641042039,38.10479,145.89,145.84,14.44053665]
[1641641042238,42.10479,145.89,145.84,14.44053665]
[1641641042538,9.48432735,145.88,145.84,14.44053665]
[1641641042737,1.713,145.87,145.84,14.44053665]
[1641641042940,1.713,145.87,145.83,14.44053665]
[1641641043239,7.19753711,145.87,145.83,14.44053665]
[1641641043838,5.48453711,145.87,145.83,14.44053665]
[1641641044038,4.0,145.86,145.83,14.44053665]
[1641641044239,5.48453711,145.87,145.83,14.44053665]
[1641641044240,5.714,145.85,145.83,14.44053665]
[1641641044443,5.4854906,145.84,145.83,14.44053665]
[1641641045242,5.4854906,145.84,145.82,14.44053665]
[1641641046044,1.714,145.85,145.82,14.44053665]
[1641641046244,33.70379,145.86,145.82,14.44053665]
[1641641047545,33.70379,145.86,145.83,14.44053665]
[1641641047745,27.66479,145.86,145.83,14.44053665]
[1641641047945,38.10479,145.89,145.83,14.44053665]
[1641641048344,10.44,145.89,145.83,14.44053665]
[1641641048745,10.44,145.89,145.85,14.44053665]
[1641641049347,15.92380709,145.89,145.85,4.10053665]
[1641641049547,15.92380709,145.89,145.86,1.87396957]
[1641641049750,1.713,145.88,145.86,1.87396957]
[1641641050248,1.713,145.88,145.83,1.87396957]
[1641641050447,26.40680709,145.89,145.83,1.87396957]
[1641641051151,26.40680709,145.89,145.81,38.54881974]
[1641641051649,30.40680709,145.89,145.81,38.54881974]
[1641641051849,30.40680709,145.89,145.81,40.42278931]
[1641641052049,30.40680709,145.89,145.81,54.51537069]
[1641641052252,26.40680709,145.89,145.81,54.51537069]
[1641641052851,26.40680709,145.89,145.82,38.54881974]
[1641641053051,17.63780709,145.89,145.82,38.54881974]
[1641641053752,17.63780709,145.89,145.81,54.51537069]
[1641641054654,17.63780709,145.89,145.82,38.54881974]
[1641641056556,21.63780709,145.89,145.84,38.54881974]
[1641641056757,5.4846196,145.87,145.84,38.54881974]
[1641641056956,1.714,145.86,145.84,38.54881974]
[1641641057358,1.714,145.86,145.83,38.54881974]
[1641641057556,12.0826196,145.87,145.83,38.54881974]
[1641641058157,39.7474096,145.87,145.82,38.54881974]
[1641641059960,39.7474096,145.87,145.83,38.54881974]
[1641641061860,5.48518093,145.85,145.83,38.54881974]
[1641641062263,5.48518093,145.85,145.84,38.54881974]
[1641641062462,27.66479,145.87,145.84,38.54881974]
[1641641062862,6.58092474,145.88,145.84,38.54881974]
[1641641063763,6.58092474,145.88,145.86,38.54881974]
[1641641064966,4.0,145.87,145.86,33.06399402]
[1641641065366,1.713,145.88,145.87,1.87396957]
[1641641066268,1.713,145.88,145.82,15.96655095]
[1641641066470,12.154,145.89,145.82,15.96655095]
[1641641066668,10.44,145.89,145.82,15.96655095]
[1641641074878,4.0,145.88,145.82,15.96655095]
[1641641075078,5.48409853,145.88,145.82,15.96655095]
[1641641075278,5.48485975,145.86,145.82,15.96655095]
[1641641075680,12.74585975,145.86,145.82,6.10655095]
[1641641075878,5.48554306,145.84,145.81,54.72945063]
[1641641076078,5.48554306,145.84,145.81,46.72945063]
[1641641076281,27.66479,145.83,145.81,46.72945063]
[1641641076484,34.63579,145.83,145.81,46.72945063]
[1641641076784,34.63579,145.83,145.81,45.74945063]
[1641641077183,34.63579,145.83,145.78,63.6046]
[1641641078685,6.971,145.83,145.78,63.6046]
[1641641078884,5.48554306,145.84,145.78,63.6046]
[1641641079284,8.975,145.86,145.78,63.6046]
[1641641079486,7.261,145.86,145.78,63.6046]
[1641641080287,27.66479,145.84,145.78,63.6046]
[1641641086291,34.8643572,145.84,145.83,14.57728591]
[1641641087091,34.8643572,145.84,145.82,14.57728591]
[1641641088593,33.1503572,145.84,145.82,14.57728591]
[1641641089295,33.1503572,145.84,145.82,4.35728591]
[1641641089793,43.2903572,145.84,145.82,0.01728591]
[1641641090193,43.2903572,145.84,145.78,102.47736242]
[1641641090994,43.2903572,145.84,145.78,63.6046]
[1641641091195,45.0043572,145.84,145.78,56.2846]
[1641641092899,45.0043572,145.84,145.78,95.15736242]
[1641641093097,39.51879,145.84,145.78,95.15736242]
[1641641093297,37.80479,145.84,145.78,95.15736242]
[1641641094298,37.80479,145.84,145.8,38.87276242]
[1641641098804,10.14,145.84,145.8,38.87276242]
[1641641099706,10.14,145.84,145.81,38.87276242]
[1641641100605,10.14,145.84,145.8,38.87276242]
[1641641102609,37.80479,145.84,145.8,38.87276242]
[1641641104111,37.80479,145.84,145.81,38.87276242]
[1641641108715,37.80479,145.84,145.8,38.87276242]
[1641641109512,37.80479,145.84,145.79,13.22284666]
[1641641109513,37.80479,145.84,145.82,38.87276242]
[1641641110312,37.80479,145.84,145.81,38.87276242]
[1641641111614,37.80479,145.84,145.79,13.22284666]
[1641641111615,37.80479,145.84,145.83,38.87276242]
[1641641112813,10.14,145.84,145.83,38.87276242]
[1641641115216,10.14,145.84,145.81,6.692]
[1641641115416,10.14,145.84,145.8,58.29114046]
[1641641116217,10.14,145.84,145.8,60.52411056]
[1641641118725,10.14,145.84,145.8,58.29114046]
[1641641119524,10.14,145.84,145.82,38.87053323]
[1641641120325,10.14,145.84,145.83,38.87053323]
[1641641122026,10.14,145.84,145.82,38.87053323]
[1641641122827,10.14,145.84,145.83,38.87053323]
[1641641131033,37.80479,145.84,145.83,38.87053323]
[1641641131234,43.29043757,145.84,145.83,38.87053323]
[1641641132138,43.29043757,145.84,145.81,38.87053323]
[1641641132336,50.63343757,145.84,145.81,38.87053323]
[1641641136543,50.63343757,145.84,145.81,37.51053323]
[1641641136740,50.63343757,145.84,145.83,14.57980831]
[1641641138142,43.29043757,145.84,145.83,14.57980831]
[1641641139446,43.29043757,145.84,145.8,37.51053323]
[1641641139645,43.29043757,145.84,145.81,37.51053323]
[1641641140944,43.29043757,145.84,145.81,26.61053323]
[1641641141147,43.29043757,145.84,145.81,10.97053323]
[1641641141346,43.29043757,145.84,145.82,2.2329701]
[1641641142250,43.29043757,145.84,145.82,14.57196565]
[1641641142749,5.48604938,145.83,145.82,14.57196565]
[1641641144151,5.48604938,145.83,145.81,14.57196565]
[1641641144853,12.40704938,145.83,145.81,14.57196565]
[1641641145556,12.40704938,145.83,145.82,14.57196565]
[1641641146154,16.40704938,145.83,145.76,15.45581676]
[1641641146354,5.48693063,145.81,145.76,15.45581676]
[1641641146554,5.48693063,145.81,145.76,13.22284666]
[1641641147554,33.15172063,145.81,145.76,13.22284666]
[1641641147753,38.47972063,145.81,145.76,13.22284666]
[1641641147955,42.47972063,145.81,145.76,13.22284666]
[1641641148556,42.47972063,145.81,145.75,59.3555]
[1641641148756,4.0,145.8,145.75,49.6355]
[1641641148955,4.0,145.76,145.7,92.81652322]
[1641641149156,6.897,145.76,145.7,58.29114046]
[1641641149357,10.897,145.76,145.69,58.29114046]
[1641641149558,27.66479,145.75,145.69,58.29114046]
[1641641149959,4.0,145.74,145.69,53.29114046]
[1641641150160,4.0,145.73,145.69,53.29114046]
[1641641150358,8.043,145.73,145.65,123.96132188]
[1641641150559,12.043,145.73,145.66,18.05805533]
[1641641150760,8.043,145.73,145.66,18.05805533]
[1641641151659,8.043,145.73,145.65,27.66479]
[1641641152258,12.043,145.73,145.65,27.66479]
[1641641152460,4.0,145.7,145.64,18.05805533]
[1641641152663,1.716,145.69,145.64,18.05805533]
[1641641152860,11.558,145.7,145.64,18.05805533]
[1641641153462,27.66479,145.66,145.64,18.05805533]
[1641641153662,35.22979,145.66,145.62,67.8385]
[1641641153962,35.22979,145.66,145.59,4.0]
[1641641154362,35.22979,145.66,145.58,64.3531]
[1641641154560,35.22979,145.66,145.58,60.3531]
[1641641154764,35.22979,145.66,145.58,122.96114028]
[1641641156962,35.22979,145.66,145.58,124.67714028]
[1641641157162,7.565,145.66,145.58,124.67714028]
[1641641157362,27.66479,145.68,145.58,128.67714028]
[1641641157563,27.66479,145.68,145.58,116.67714028]
[1641641158263,27.66479,145.68,145.58,114.96114028]
[1641641158863,27.66479,145.68,145.58,118.96114028]
[1641641159963,27.66479,145.68,145.58,114.96114028]
[1641641160165,27.66479,145.68,145.58,118.96114028]
[1641641161965,27.66479,145.68,145.6,38.60090455]
[1641641162366,31.66479,145.68,145.6,38.60090455]
[1641641162766,27.66479,145.68,145.6,38.60090455]
[1641641162966,4.0,145.67,145.6,38.60090455]
[1641641163166,4.0,145.64,145.6,38.60090455]
[1641641163366,1.716,145.63,145.6,38.60090455]
[1641641163566,1.716,145.63,145.59,1.94164714]
[1641641163567,29.38079,145.63,145.59,1.94164714]
[1641641163770,27.66479,145.63,145.59,1.94164714]
[1641641164966,29.38079,145.63,145.59,1.94164714]
[1641641165366,29.38079,145.63,145.58,58.39964714]
[1641641165566,27.66479,145.63,145.58,58.39964714]
[1641641166467,1.716,145.62,145.58,48.23964714]
[1641641166667,1.716,145.62,145.58,47.25964714]
[1641641168770,1.716,145.62,145.53,105.047]
[1641641168969,1.716,145.62,145.53,67.8727]
[1641641169169,1.716,145.62,145.53,71.8727]
[1641641169370,1.716,145.62,145.54,4.0]
[1641641169771,1.716,145.62,145.54,31.66479]
[1641641170270,1.716,145.62,145.57,4.0]
[1641641170670,1.716,145.62,145.56,10.162]
[1641641170870,1.716,145.62,145.55,67.6682]
[1641641170871,7.751,145.62,145.55,71.6682]
[1641641171069,7.751,145.62,145.55,67.6682]
[1641641171673,27.66479,145.6,145.55,67.6682]
[1641641172373,27.66479,145.6,145.55,71.6682]
[1641641172573,27.66479,145.6,145.55,67.6682]
[1641641173676,35.63479,145.6,145.55,67.6682]
[1641641176381,1.716,145.62,145.55,60.6682]
[1641641176579,1.716,145.62,145.55,64.6682]
[1641641176780,1.716,145.62,145.55,60.6682]
[1641641176979,1.716,145.62,145.58,14.52551667]
[1641641178781,1.716,145.62,145.6,14.52551667]
[1641641179883,27.66479,145.61,145.6,14.52551667]
[1641641180782,27.66479,145.61,145.59,14.52551667]
[1641641180984,27.66479,145.61,145.59,13.02551667]
[1641641183384,10.16,145.63,145.6,4.0]
[1641641183585,78.1078,145.7,145.6,6.894]
[1641641183988,27.66479,145.68,145.6,6.894]
[1641641184185,27.66479,145.68,145.6,70.9414]
[1641641184385,31.66479,145.68,145.61,38.60090455]
[1641641184585,4.0,145.64,145.61,28.18090455]
[1641641184785,5.458,145.64,145.61,28.18090455]
[1641641185887,27.66479,145.63,145.61,28.18090455]
[1641641186087,27.66479,145.63,145.6,64.0474]
[1641641186988,4.0,145.61,145.6,64.0474]
[1641641187388,27.66479,145.63,145.6,64.0474]
[1641641188890,4.0,145.61,145.6,64.0474]
[1641641189094,5.496,145.61,145.6,64.0474]
[1641641189893,9.496,145.61,145.6,64.0474]
[1641641190394,9.496,145.61,145.53,131.7655]
[1641641190593,4.0,145.6,145.52,85.58918761]
[1641641191093,70.29137157,145.62,145.54,4.0]
[1641641191293,70.29137157,145.62,145.55,4.0]
[1641641191895,70.29137157,145.62,145.56,57.92439761]
[1641641192795,5.49407157,145.62,145.56,57.92439761]
[1641641194697,5.49407157,145.62,145.57,57.92439761]
[1641641195999,27.66479,145.63,145.57,57.92439761]
[1641641197001,27.66479,145.63,145.58,57.92439761]
[1641641197901,27.66479,145.63,145.59,57.92439761]
[1641641199605,27.66479,145.63,145.6,57.92439761]
[1641641203909,10.22,145.64,145.62,57.92439761]
[1641641205112,10.22,145.64,145.63,38.92944639]
[1641641206513,14.22,145.64,145.63,38.92944639]
[1641641206717,10.22,145.64,145.63,35.84944639]
[1641641206914,10.22,145.64,145.63,38.06904579]
[1641641207516,10.22,145.64,145.59,60.14399701]
[1641641207719,10.22,145.64,145.59,2.2195994]
[1641641209216,10.22,145.64,145.6,4.0]
[1641641209415,10.22,145.64,145.59,2.2195994]
[1641641210517,10.22,145.64,145.6,57.92439761]
[1641641213722,10.22,145.64,145.61,57.92439761]
[1641641214323,10.22,145.64,145.6,57.92439761]
[1641641216425,10.22,145.64,145.61,4.0]
[1641641217126,10.22,145.64,145.6,57.92439761]
[1641641217327,18.41,145.64,145.6,57.92439761]
[1641641217726,20.126,145.64,145.6,57.92439761]
[1641641218028,20.126,145.64,145.62,2.2195994]
[1641641218227,9.49373406,145.63,145.62,9.94e-05]
[1641641218428,5.4941847,145.61,145.6,57.92439761]
[1641641218627,5.4941847,145.61,145.58,13.87011928]
[1641641218628,13.5021847,145.61,145.58,13.87011928]
[1641641218828,8.008,145.61,145.58,3.87011928]
[1641641223233,8.008,145.61,145.58,61.79451689]
[1641641224231,27.66479,145.63,145.58,65.79451689]
[1641641224433,18.41,145.64,145.58,65.79451689]
[1641641224734,18.41,145.64,145.59,4.0]
[1641641225135,10.22,145.64,145.61,4.0]
[1641641225335,10.22,145.64,145.6,4.0]
[1641641225539,10.22,145.64,145.61,4.0]
[1641641225937,10.22,145.64,145.61,61.92439761]
[1641641227135,10.22,145.64,145.61,4.0]
[1641641228535,10.22,145.64,145.63,4.0]
[1641641228735,29.38079,145.69,145.63,4.0]
[1641641228936,27.66479,145.69,145.63,4.0]
[1641641229538,10.24,145.7,145.67,38.90570452]
[1641641230636,10.24,145.7,145.68,38.90570452]
[1641641236443,10.24,145.7,145.68,42.90570452]
[1641641237844,10.24,145.7,145.68,38.90570452]
[1641641238845,78.03405603,145.75,145.68,45.02870452]
[1641641239047,78.03405603,145.75,145.69,27.66479]
[1641641239646,78.03405603,145.75,145.73,14.54799948]
[1641641239847,19.78475603,145.75,145.73,14.54799948]
[1641641241549,19.78475603,145.75,145.72,14.54799948]
[1641641250559,19.78475603,145.75,145.73,14.54799948]
[1641641254065,19.78475603,145.75,145.74,14.54799948]
[1641641255266,10.3,145.75,145.74,14.54799948]
[1641641257569,14.3,145.75,145.74,14.54799948]
[1641641257769,12.015,145.75,145.74,14.54799948]
[1641641258370,10.3,145.75,145.74,14.54799948]
[1641641258571,10.3,145.75,145.7,38.90570452]
[1641641258772,15.958,145.75,145.7,38.90570452]
[1641641258973,15.958,145.75,145.74,2.12692847]
[1641641259173,17.673,145.75,145.74,2.12692847]
[1641641259375,17.673,145.75,145.7,38.90570452]
[1641641259574,7.20422915,145.74,145.7,38.90570452]
[1641641260975,5.48922915,145.74,145.7,38.90570452]
[1641641263479,12.015,145.75,145.71,38.90570452]
[1641641263679,73.8433,145.75,145.71,38.90570452]
[1641641266381,73.8433,145.75,145.72,38.90570452]
[1641641267583,10.3,145.75,145.72,38.90570452]
[1641641268283,10.3,145.75,145.72,44.39370452]
[1641641268484,10.3,145.75,145.73,4.0]
[1641641268686,10.3,145.75,145.72,44.39370452]
[1641641268687,10.3,145.75,145.74,4.0]
[1641641268884,6.58507994,145.79,145.74,4.0]
[1641641268885,10.3,145.8,145.74,4.0]
[1641641269083,10.3,145.8,145.72,44.39370452]
[1641641269084,10.3,145.8,145.73,4.0]
[1641641269285,10.3,145.8,145.72,44.39370452]
[1641641269786,10.3,145.8,145.77,38.90570452]
[1641641270786,10.3,145.8,145.76,38.90570452]
[1641641272992,10.3,145.8,145.75,38.90570452]
[1641641273691,19.78723394,145.8,145.75,38.90570452]
[1641641273891,15.78723394,145.8,145.75,38.90570452]
[1641641274291,1.714,145.79,145.75,38.90570452]
[1641641275594,1.714,145.79,145.76,38.90570452]
[1641641275892,10.3,145.8,145.76,38.90570452]
[1641641278296,10.3,145.8,145.77,38.90570452]
[1641641279598,10.3,145.8,145.77,42.90570452]
[1641641279999,10.3,145.8,145.77,4.0]
[1641641283200,6.58329173,145.83,145.77,4.0]
[1641641283400,6.58329173,145.83,145.77,105.64960452]
[1641641283604,16.98329173,145.83,145.77,105.64960452]
[1641641284100,10.4,145.83,145.78,4.0]
[1641641284602,10.4,145.83,145.78,56.52329387]
[1641641285001,10.4,145.83,145.78,52.52329387]
[1641641285602,10.4,145.83,145.77,105.64960452]
[1641641286505,10.4,145.83,145.78,53.56843506]
[1641641286704,10.4,145.83,145.78,57.56843506]
[1641641287904,10.4,145.83,145.79,38.90570452]
[1641641289006,10.4,145.83,145.82,14.54291881]
[1641641294816,15.88609669,145.83,145.82,14.54291881]
[1641641295216,15.88609669,145.83,145.82,13.00291881]
[1641641295616,10.4,145.83,145.82,13.00291881]
[1641641296717,10.4,145.83,145.79,38.90570452]
[1641641297617,10.4,145.83,145.8,38.90570452]
[1641641301523,19.88602903,145.83,145.8,38.90570452]
[1641641301922,5.48828001,145.77,145.75,40.86439761]
[1641641302122,1.715,145.76,145.75,6.68439761]
[1641641302323,1.715,145.76,145.68,62.054]
[1641641302526,1.715,145.76,145.7,96.29653188]
[1641641302723,1.715,145.76,145.7,123.96132188]
[1641641303424,1.715,145.76,145.7,27.66479]
[1641641305428,1.715,145.76,145.68,62.054]
[1641641306928,1.715,145.76,145.7,27.66479]
[1641641308330,4.0,145.73,145.7,27.66479]
[1641641308530,4.0,145.72,145.65,69.173]
[1641641308729,1.716,145.71,145.65,67.458]
[1641641308932,27.66479,145.71,145.65,67.458]
[1641641310933,7.20611613,145.72,145.65,71.458]
[1641641311133,7.20611613,145.72,145.65,67.458]
[1641641311334,5.49011613,145.72,145.65,67.458]
[1641641313835,5.49011613,145.72,145.64,7.196]
[1641641315037,29.38079,145.71,145.64,7.196]
[1641641315237,27.66479,145.71,145.64,7.196]
[1641641317239,10.02,145.72,145.67,4.0]
[1641641317443,5.48909565,145.75,145.67,11.819]
[1641641317640,10.06,145.77,145.67,11.819]
[1641641317840,11.775,145.77,145.67,11.819]
[1641641318142,11.775,145.77,145.67,7.819]
[1641641318340,11.775,145.77,145.67,11.819]
[1641641318640,11.775,145.77,145.68,4.0]
[1641641318840,10.06,145.77,145.68,5.715]
[1641641319141,10.06,145.77,145.71,27.66479]
[1641641319340,10.06,145.77,145.71,33.14979]
[1641641323845,10.06,145.77,145.71,27.66479]
[1641641325847,10.06,145.77,145.74,14.52275679]
[1641641326648,10.06,145.77,145.75,14.52275679]
[1641641327646,10.06,145.77,145.74,14.52275679]
[1641641329250,10.06,145.77,145.75,14.52275679]
[1641641329449,10.06,145.77,145.75,20.66175679]
[1641641330552,10.06,145.77,145.76,14.52275679]
[1641641332853,10.06,145.77,145.73,38.6976327]
[1641641333053,10.06,145.77,145.71,29.37979]
[1641641333054,10.06,145.77,145.74,38.6976327]
[1641641336356,12.68867115,145.81,145.74,38.6976327]
[1641641336558,7.20186769,145.81,145.74,38.6976327]
[1641641336956,7.20186769,145.81,145.78,14.54707375]
[1641641339560,5.48686769,145.81,145.78,14.54707375]